{"text_format":"1","workbook":"xlsx","n_sheets":1,"sheets":["Cálculo Enunciado CT nº 11"],"not_rendered":{"charts":0,"images":3,"macros":1,"external_links":0,"defined_names":1,"comments":0,"pivot_tables":0},"unopened":[],"bounds":{"document_bytes":16777216,"sheet_cells":100000,"rows_first":2000,"rows_last":500,"rows_between":2000,"halvings":0,"cell_chars":16384,"cell_head_chars":4096},"cells_cut":0,"cells_raw":0,"read":"whole","date_system":"1900"}

{"sheet":"Cálculo Enunciado CT nº 11","index":0,"n_rows":26,"n_cols":11,"rows_kept":26,"cut":false,"hidden":false,"merged":[[25,1,25,4]]}
[null,null,"Planilha de Cálculo do Enunciado CT nº 11"]
[]
[null,null,null,false]
[30,"Processo"]
[20,"Lote"]
[1.5,"Item"]
[null,"Código Siga"]
[null,"Descrição",null,"Menor Preço"]
[]
[null,"Nº","Empresa","Vlr. Cotado","Vlr. Valido",null,null,"Original","Adotada"]
[null,{"$f":"IF(Tabela1[[#This Row],[Vlr. Cotado]]=\"\",\"\",ROW()-9)","v":""},null,null,{"$f":"IF(Tabela1[[#This Row],[Vlr. Cotado]]=\"\",\"\",\nIF($D$3=TRUE,Tabela1[[#This Row],[Vlr. Cotado]],\nIF(AND(MAX(Tabela1[Nº])=3,(MAX(Tabela1[Vlr. Cotado])/MIN(Tabela1[Vlr. Cotado]))>1.3,MAX(Tabela1[Vlr. Cotado])=Tabela1[[#This Row],[Vlr. Cotado]]),\"    Excluido\",\nIF(AND(MAX(Tabela1[Nº])=3,(MAX(Tabela1[Vlr. Cotado])/MIN(Tabela1[Vlr. Cotado]))<=1.3,MAX(Tabela1[Vlr. Cotado])=Tabela1[[#This Row],[Vlr. Cotado]]),Tabela1[[#This Row],[Vlr. Cotado]],\nIF(MAX(Tabela1[Nº])=4,Tabela1[[#This Row],[Vlr. Cotado]],\nIF(AND(MAX(Tabela1[Nº])>4,MAX(Tabela1[Nº]),$H$13>25%),IF(OR(Tabela1[[#This Row],[Vlr. Cotado]]<$H$16,Tabela1[[#This Row],[Vlr. Cotado]]>$H$15),\"    Excluido\",Tabela1[[#This Row],[Vlr. Cotado]]),Tabela1[[#This Row],[Vlr. Cotado]]))))))","v":""},null,"Desvio Padrão",{"$f":"IFERROR(_xlfn.STDEV.S(Tabela1[Vlr. Cotado]),\"\")","v":""},{"$f":"IFERROR(_xlfn.STDEV.S(Tabela1[Vlr. Valido]),\"\")","v":""},null,"Utilizado o inciso III do Enunciado, opção pelo menor preço."]
[null,{"$f":"IF(Tabela1[[#This Row],[Vlr. Cotado]]=\"\",\"\",ROW()-9)","v":""},null,null,{"$f":"IF(Tabela1[[#This Row],[Vlr. Cotado]]=\"\",\"\",\nIF($D$3=TRUE,Tabela1[[#This Row],[Vlr. Cotado]],\nIF(AND(MAX(Tabela1[Nº])=3,(MAX(Tabela1[Vlr. Cotado])/MIN(Tabela1[Vlr. Cotado]))>1.3,MAX(Tabela1[Vlr. Cotado])=Tabela1[[#This Row],[Vlr. Cotado]]),\"    Excluido\",\nIF(AND(MAX(Tabela1[Nº])=3,(MAX(Tabela1[Vlr. Cotado])/MIN(Tabela1[Vlr. Cotado]))<=1.3,MAX(Tabela1[Vlr. Cotado])=Tabela1[[#This Row],[Vlr. Cotado]]),Tabela1[[#This Row],[Vlr. Cotado]],\nIF(MAX(Tabela1[Nº])=4,Tabela1[[#This Row],[Vlr. Cotado]],\nIF(AND(MAX(Tabela1[Nº])>4,MAX(Tabela1[Nº]),$H$13>25%),IF(OR(Tabela1[[#This Row],[Vlr. Cotado]]<$H$16,Tabela1[[#This Row],[Vlr. Cotado]]>$H$15),\"    Excluido\",Tabela1[[#This Row],[Vlr. Cotado]]),Tabela1[[#This Row],[Vlr. Cotado]]))))))","v":""},null,"Média",{"$f":"IFERROR(AVERAGE(Tabela1[Vlr. Cotado]),\"\")","v":""},{"$f":"IFERROR(AVERAGE(Tabela1[Vlr. Valido]),\"\")","v":""},null,"a) Quando coletados 2 (dois) preços: formar o preço de referência pela média aritmética dos valores obtidos"]
[null,{"$f":"IF(Tabela1[[#This Row],[Vlr. Cotado]]=\"\",\"\",ROW()-9)","v":""},null,null,{"$f":"IF(Tabela1[[#This Row],[Vlr. Cotado]]=\"\",\"\",\nIF($D$3=TRUE,Tabela1[[#This Row],[Vlr. Cotado]],\nIF(AND(MAX(Tabela1[Nº])=3,(MAX(Tabela1[Vlr. Cotado])/MIN(Tabela1[Vlr. Cotado]))>1.3,MAX(Tabela1[Vlr. Cotado])=Tabela1[[#This Row],[Vlr. Cotado]]),\"    Excluido\",\nIF(AND(MAX(Tabela1[Nº])=3,(MAX(Tabela1[Vlr. Cotado])/MIN(Tabela1[Vlr. Cotado]))<=1.3,MAX(Tabela1[Vlr. Cotado])=Tabela1[[#This Row],[Vlr. Cotado]]),Tabela1[[#This Row],[Vlr. Cotado]],\nIF(MAX(Tabela1[Nº])=4,Tabela1[[#This Row],[Vlr. Cotado]],\nIF(AND(MAX(Tabela1[Nº])>4,MAX(Tabela1[Nº]),$H$13>25%),IF(OR(Tabela1[[#This Row],[Vlr. Cotado]]<$H$16,Tabela1[[#This Row],[Vlr. Cotado]]>$H$15),\"    Excluido\",Tabela1[[#This Row],[Vlr. Cotado]]),Tabela1[[#This Row],[Vlr. Cotado]]))))))","v":""},null,"Coeficiente Variação",{"$f":"IFERROR(H11/H12,\"\")","v":""},{"$f":"IFERROR(I11/I12,\"\")","v":""},null,"b.1) Quando coletados 3 (três) preços, calculando a razão entre o maior e o menor preços, se o resultado da divisão for superior a 30% (trinta por cento, ou seja, resultado da divisão maior do que 1,30), deverá ser descartado o maior preço e formado o preço de referência pela média aritmética entre os outros 2 (dois) preços coletados;"]
[null,{"$f":"IF(Tabela1[[#This Row],[Vlr. Cotado]]=\"\",\"\",ROW()-9)","v":""},null,null,{"$f":"IF(Tabela1[[#This Row],[Vlr. Cotado]]=\"\",\"\",\nIF($D$3=TRUE,Tabela1[[#This Row],[Vlr. Cotado]],\nIF(AND(MAX(Tabela1[Nº])=3,(MAX(Tabela1[Vlr. Cotado])/MIN(Tabela1[Vlr. Cotado]))>1.3,MAX(Tabela1[Vlr. Cotado])=Tabela1[[#This Row],[Vlr. Cotado]]),\"    Excluido\",\nIF(AND(MAX(Tabela1[Nº])=3,(MAX(Tabela1[Vlr. Cotado])/MIN(Tabela1[Vlr. Cotado]))<=1.3,MAX(Tabela1[Vlr. Cotado])=Tabela1[[#This Row],[Vlr. Cotado]]),Tabela1[[#This Row],[Vlr. Cotado]],\nIF(MAX(Tabela1[Nº])=4,Tabela1[[#This Row],[Vlr. Cotado]],\nIF(AND(MAX(Tabela1[Nº])>4,MAX(Tabela1[Nº]),$H$13>25%),IF(OR(Tabela1[[#This Row],[Vlr. Cotado]]<$H$16,Tabela1[[#This Row],[Vlr. Cotado]]>$H$15),\"    Excluido\",Tabela1[[#This Row],[Vlr. Cotado]]),Tabela1[[#This Row],[Vlr. Cotado]]))))))","v":""},null,null,null,null,null,"b.2) Quando coletados 3 (três) preços, calculando a razão entre o maior e o menor preços, se o resultado da divisão for inferior ou igual a 30% (trinta por cento, ou seja, resultado da divisão maior do que 1,30),  o preço de referência será formado pela média aritmética dos 3 (três preços coletados)"]
[null,{"$f":"IF(Tabela1[[#This Row],[Vlr. Cotado]]=\"\",\"\",ROW()-9)","v":""},null,null,{"$f":"IF(Tabela1[[#This Row],[Vlr. Cotado]]=\"\",\"\",\nIF($D$3=TRUE,Tabela1[[#This Row],[Vlr. Cotado]],\nIF(AND(MAX(Tabela1[Nº])=3,(MAX(Tabela1[Vlr. Cotado])/MIN(Tabela1[Vlr. Cotado]))>1.3,MAX(Tabela1[Vlr. Cotado])=Tabela1[[#This Row],[Vlr. Cotado]]),\"    Excluido\",\nIF(AND(MAX(Tabela1[Nº])=3,(MAX(Tabela1[Vlr. Cotado])/MIN(Tabela1[Vlr. Cotado]))<=1.3,MAX(Tabela1[Vlr. Cotado])=Tabela1[[#This Row],[Vlr. Cotado]]),Tabela1[[#This Row],[Vlr. Cotado]],\nIF(MAX(Tabela1[Nº])=4,Tabela1[[#This Row],[Vlr. Cotado]],\nIF(AND(MAX(Tabela1[Nº])>4,MAX(Tabela1[Nº]),$H$13>25%),IF(OR(Tabela1[[#This Row],[Vlr. Cotado]]<$H$16,Tabela1[[#This Row],[Vlr. Cotado]]>$H$15),\"    Excluido\",Tabela1[[#This Row],[Vlr. Cotado]]),Tabela1[[#This Row],[Vlr. Cotado]]))))))","v":""},null,"LS",{"$f":"IFERROR(H12*(100%+H13),\"\")","v":""},{"$f":"IFERROR(I12*(100%+I13),\"\")","v":""},null,"c) Quando coletados 4 (quatro) preços : formar o preço de referência, classificando os dados coletados do menor para o maior, calculando a média aritmética e a mediana dos preços, devendo prevalecer o menor resultado obtido"]
[null,{"$f":"IF(Tabela1[[#This Row],[Vlr. Cotado]]=\"\",\"\",ROW()-9)","v":""},null,null,{"$f":"IF(Tabela1[[#This Row],[Vlr. Cotado]]=\"\",\"\",\nIF($D$3=TRUE,Tabela1[[#This Row],[Vlr. Cotado]],\nIF(AND(MAX(Tabela1[Nº])=3,(MAX(Tabela1[Vlr. Cotado])/MIN(Tabela1[Vlr. Cotado]))>1.3,MAX(Tabela1[Vlr. Cotado])=Tabela1[[#This Row],[Vlr. Cotado]]),\"    Excluido\",\nIF(AND(MAX(Tabela1[Nº])=3,(MAX(Tabela1[Vlr. Cotado])/MIN(Tabela1[Vlr. Cotado]))<=1.3,MAX(Tabela1[Vlr. Cotado])=Tabela1[[#This Row],[Vlr. Cotado]]),Tabela1[[#This Row],[Vlr. Cotado]],\nIF(MAX(Tabela1[Nº])=4,Tabela1[[#This Row],[Vlr. Cotado]],\nIF(AND(MAX(Tabela1[Nº])>4,MAX(Tabela1[Nº]),$H$13>25%),IF(OR(Tabela1[[#This Row],[Vlr. Cotado]]<$H$16,Tabela1[[#This Row],[Vlr. Cotado]]>$H$15),\"    Excluido\",Tabela1[[#This Row],[Vlr. Cotado]]),Tabela1[[#This Row],[Vlr. Cotado]]))))))","v":""},null,"LI",{"$f":"IFERROR(H12*(100%-H13),\"\")","v":""},{"$f":"IFERROR(I12*(100%-I13),\"\")","v":""},null,"d) Quando coletados 5 (cinco) preços ou mais: formar o preço de referência, classificando os dados coletados do menor para o maior, obtendo o coeficiente de variação dos preços e calculando a média saneada"]
[null,{"$f":"IF(Tabela1[[#This Row],[Vlr. Cotado]]=\"\",\"\",ROW()-9)","v":""},null,null,{"$f":"IF(Tabela1[[#This Row],[Vlr. Cotado]]=\"\",\"\",\nIF($D$3=TRUE,Tabela1[[#This Row],[Vlr. Cotado]],\nIF(AND(MAX(Tabela1[Nº])=3,(MAX(Tabela1[Vlr. Cotado])/MIN(Tabela1[Vlr. Cotado]))>1.3,MAX(Tabela1[Vlr. Cotado])=Tabela1[[#This Row],[Vlr. Cotado]]),\"    Excluido\",\nIF(AND(MAX(Tabela1[Nº])=3,(MAX(Tabela1[Vlr. Cotado])/MIN(Tabela1[Vlr. Cotado]))<=1.3,MAX(Tabela1[Vlr. Cotado])=Tabela1[[#This Row],[Vlr. Cotado]]),Tabela1[[#This Row],[Vlr. Cotado]],\nIF(MAX(Tabela1[Nº])=4,Tabela1[[#This Row],[Vlr. Cotado]],\nIF(AND(MAX(Tabela1[Nº])>4,MAX(Tabela1[Nº]),$H$13>25%),IF(OR(Tabela1[[#This Row],[Vlr. Cotado]]<$H$16,Tabela1[[#This Row],[Vlr. Cotado]]>$H$15),\"    Excluido\",Tabela1[[#This Row],[Vlr. Cotado]]),Tabela1[[#This Row],[Vlr. Cotado]]))))))","v":""}]
[null,{"$f":"IF(Tabela1[[#This Row],[Vlr. Cotado]]=\"\",\"\",ROW()-9)","v":""},null,null,{"$f":"IF(Tabela1[[#This Row],[Vlr. Cotado]]=\"\",\"\",\nIF($D$3=TRUE,Tabela1[[#This Row],[Vlr. Cotado]],\nIF(AND(MAX(Tabela1[Nº])=3,(MAX(Tabela1[Vlr. Cotado])/MIN(Tabela1[Vlr. Cotado]))>1.3,MAX(Tabela1[Vlr. Cotado])=Tabela1[[#This Row],[Vlr. Cotado]]),\"    Excluido\",\nIF(AND(MAX(Tabela1[Nº])=3,(MAX(Tabela1[Vlr. Cotado])/MIN(Tabela1[Vlr. Cotado]))<=1.3,MAX(Tabela1[Vlr. Cotado])=Tabela1[[#This Row],[Vlr. Cotado]]),Tabela1[[#This Row],[Vlr. Cotado]],\nIF(MAX(Tabela1[Nº])=4,Tabela1[[#This Row],[Vlr. Cotado]],\nIF(AND(MAX(Tabela1[Nº])>4,MAX(Tabela1[Nº]),$H$13>25%),IF(OR(Tabela1[[#This Row],[Vlr. Cotado]]<$H$16,Tabela1[[#This Row],[Vlr. Cotado]]>$H$15),\"    Excluido\",Tabela1[[#This Row],[Vlr. Cotado]]),Tabela1[[#This Row],[Vlr. Cotado]]))))))","v":""}]
[null,{"$f":"IF(Tabela1[[#This Row],[Vlr. Cotado]]=\"\",\"\",ROW()-9)","v":""},null,null,{"$f":"IF(Tabela1[[#This Row],[Vlr. Cotado]]=\"\",\"\",\nIF($D$3=TRUE,Tabela1[[#This Row],[Vlr. Cotado]],\nIF(AND(MAX(Tabela1[Nº])=3,(MAX(Tabela1[Vlr. Cotado])/MIN(Tabela1[Vlr. Cotado]))>1.3,MAX(Tabela1[Vlr. Cotado])=Tabela1[[#This Row],[Vlr. Cotado]]),\"    Excluido\",\nIF(AND(MAX(Tabela1[Nº])=3,(MAX(Tabela1[Vlr. Cotado])/MIN(Tabela1[Vlr. Cotado]))<=1.3,MAX(Tabela1[Vlr. Cotado])=Tabela1[[#This Row],[Vlr. Cotado]]),Tabela1[[#This Row],[Vlr. Cotado]],\nIF(MAX(Tabela1[Nº])=4,Tabela1[[#This Row],[Vlr. Cotado]],\nIF(AND(MAX(Tabela1[Nº])>4,MAX(Tabela1[Nº]),$H$13>25%),IF(OR(Tabela1[[#This Row],[Vlr. Cotado]]<$H$16,Tabela1[[#This Row],[Vlr. Cotado]]>$H$15),\"    Excluido\",Tabela1[[#This Row],[Vlr. Cotado]]),Tabela1[[#This Row],[Vlr. Cotado]]))))))","v":""}]
[null,{"$f":"IF(Tabela1[[#This Row],[Vlr. Cotado]]=\"\",\"\",ROW()-9)","v":""},null,null,{"$f":"IF(Tabela1[[#This Row],[Vlr. Cotado]]=\"\",\"\",\nIF($D$3=TRUE,Tabela1[[#This Row],[Vlr. Cotado]],\nIF(AND(MAX(Tabela1[Nº])=3,(MAX(Tabela1[Vlr. Cotado])/MIN(Tabela1[Vlr. Cotado]))>1.3,MAX(Tabela1[Vlr. Cotado])=Tabela1[[#This Row],[Vlr. Cotado]]),\"    Excluido\",\nIF(AND(MAX(Tabela1[Nº])=3,(MAX(Tabela1[Vlr. Cotado])/MIN(Tabela1[Vlr. Cotado]))<=1.3,MAX(Tabela1[Vlr. Cotado])=Tabela1[[#This Row],[Vlr. Cotado]]),Tabela1[[#This Row],[Vlr. Cotado]],\nIF(MAX(Tabela1[Nº])=4,Tabela1[[#This Row],[Vlr. Cotado]],\nIF(AND(MAX(Tabela1[Nº])>4,MAX(Tabela1[Nº]),$H$13>25%),IF(OR(Tabela1[[#This Row],[Vlr. Cotado]]<$H$16,Tabela1[[#This Row],[Vlr. Cotado]]>$H$15),\"    Excluido\",Tabela1[[#This Row],[Vlr. Cotado]]),Tabela1[[#This Row],[Vlr. Cotado]]))))))","v":""},null,"Média",{"$f":"IFERROR(AVERAGE(Tabela1[Vlr. Cotado]),\"\")","v":""}]
[null,null,{"$f":"IF(D3=TRUE,\"Menor Preço\",\nIF(MAX(Tabela1[Nº])<>4,\"\",\nIF(MAX(Tabela1[Nº])=4,\nIF(MEDIAN(SMALL(Tabela1[Vlr. Cotado],1),SMALL(Tabela1[Vlr. Cotado],2),SMALL(Tabela1[Vlr. Cotado],3),SMALL(Tabela1[Vlr. Cotado],4))<(AVERAGE(Tabela1[Vlr. Cotado])),\"Mediana\",\"Média\"))))","v":""},{"$f":"IFERROR(\nIF(D3=TRUE,ROUND(MIN(Tabela1[Vlr. Cotado]),2),\nIF(MAX(Tabela1[Nº])<3,ROUND(AVERAGE(Tabela1[Vlr. Cotado]),2),\nIF(AND(MAX(Tabela1[Nº])=3,(MAX(Tabela1[Vlr. Cotado])/MIN(Tabela1[Vlr. Cotado]))>1.3),ROUND(AVERAGE(SMALL(Tabela1[Vlr. Cotado],{1;2})),2),\nIF(AND(MAX(Tabela1[Nº])=3,(MAX(Tabela1[Vlr. Cotado])/MIN(Tabela1[Vlr. Cotado]))<1.31),ROUND(AVERAGE(Tabela1[Vlr. Cotado]),2),\nIF(AND(MAX(Tabela1[Nº])=4,(MEDIAN(SMALL(Tabela1[Vlr. Cotado],1),SMALL(Tabela1[Vlr. Cotado],2),SMALL(Tabela1[Vlr. Cotado],3),SMALL(Tabela1[Vlr. Cotado],4)))<AVERAGE(Tabela1[Vlr. Cotado])),MEDIAN(SMALL(Tabela1[Vlr. Cotado],1),SMALL(Tabela1[Vlr. Cotado],2),SMALL(Tabela1[Vlr. Cotado],3),SMALL(Tabela1[Vlr. Cotado],4)),\nIF(AND(MAX(Tabela1[Nº])=4,(MEDIAN(SMALL(Tabela1[Vlr. Cotado],1),SMALL(Tabela1[Vlr. Cotado],2),SMALL(Tabela1[Vlr. Cotado],3),SMALL(Tabela1[Vlr. Cotado],4)))>AVERAGE(Tabela1[Vlr. Cotado])),ROUND(AVERAGE(Tabela1[Vlr. Cotado]),2),\nIF(MAX(Tabela1[Nº])>4,ROUND(AVERAGE(Tabela1[Vlr. Valido]),2),ROUND(AVERAGE(Tabela1[Vlr. Cotado]),2)))))))),\"\")","v":""},{"$f":"IFERROR(IF(Tabela1[[#Totals],[Vlr. Cotado]]=\"\",SUBTOTAL(101,Tabela1[Vlr. Valido]),\"\"),\"\")","v":""},null,"Menor",{"$f":"IFERROR(MIN(Tabela1[Vlr. Cotado]),\"\")","v":0}]
[null,null,{"$f":"IF(D3=TRUE,\"\",\nIF(MAX(Tabela1[Nº])<>4,\"\",\nIF(MAX(Tabela1[Nº])=4,\nIF(MEDIAN(SMALL(Tabela1[Vlr. Cotado],1),SMALL(Tabela1[Vlr. Cotado],2),SMALL(Tabela1[Vlr. Cotado],3),SMALL(Tabela1[Vlr. Cotado],4))<(AVERAGE(Tabela1[Vlr. Cotado])),\"Média\",\"Mediana\"))))","v":""},{"$f":"IF(D3=TRUE,\"\",\nIF(MAX(Tabela1[Nº])<>4,\"\",\nIF(\nAND(MAX(Tabela1[Nº])=4,(MEDIAN(SMALL(Tabela1[Vlr. Cotado],1),SMALL(Tabela1[Vlr. Cotado],2),SMALL(Tabela1[Vlr. Cotado],3),SMALL(Tabela1[Vlr. Cotado],4)))<AVERAGE(Tabela1[Vlr. Cotado])),\nAVERAGE(Tabela1[Vlr. Cotado]),\nMEDIAN(SMALL(Tabela1[Vlr. Cotado],1),SMALL(Tabela1[Vlr. Cotado],2),SMALL(Tabela1[Vlr. Cotado],3),SMALL(Tabela1[Vlr. Cotado],4)))))","v":""},null,null,"Maior",{"$f":"MAX(Tabela1[Vlr. Cotado])","v":0}]
[]
[null,null,null,null,null,null,"Maior / Menor",{"$f":"IFERROR(H22/H21,\"\")","v":""}]
[null,"Procedimento Adotado:"]
[null,{"$f":"IFERROR(\nIF(D3=TRUE,K11,\nIF(MAX(Tabela1[Nº])<1,\"\",\nIF(MAX(Tabela1[Nº])<3,K12,\nIF(AND(MAX(Tabela1[Nº])=3,(MAX(Tabela1[Vlr. Cotado])/MIN(Tabela1[Vlr. Cotado]))>1.3),K13,\nIF(AND(MAX(Tabela1[Nº])=3,(MAX(Tabela1[Vlr. Cotado])/MIN(Tabela1[Vlr. Cotado]))<1.31),K14,\nIF(MAX(Tabela1[Nº])=4,K15,\nK16)))))),\"\")","v":""}]